[Event "36th Balaton Open A 2018"]
[Site "Balatonlelle"]
[Date "2018.06.16"]
[Round "5"]
[White "Leszko, Bence"]
[Black "Kincs, Imre"]
[Result "1/2-1/2"]
[ECO "A06"]
[WhiteElo "2096"]
[BlackElo "2210"]
[Annotator "NA"]
[PlyCount "77"]
[EventDate "2018.06.12"]
[EventType "swiss"]
[EventCountry "HUN"]
[SourceTitle "playchess.com"]
[Source "ChessBase"]
[SourceQuality "1"]
[TimeControl "40/5400+30:1800+30"]

1. Nf3 {[%emt 0:00:02]} d5 {[%emt 0:04:50]} 2. g3 {[%emt 0:00:11]} Nf6 {[%emt 0:00:35]} 3. Bg2 {[%emt 0:00:09]} Bg4 {[%emt 0:00:18]} 4. c4 {[%emt 0:00:58]} e6 {[%emt 0:00:26]} 5. Nc3 {[%emt 0:08:09]} c6 {[%emt 0:01:07]} 6. cxd5 {[%emt 0:00:43]} exd5 {[%emt 0:00:17]} 7. d4 {[%emt 0:01:06]} Nbd7 {[%emt 0:00:29]} 8. O-O {[%emt 0:00:44]} Bd6 {[%emt 0:00:15]} 9. Qc2 {[%emt 0:00:34]} O-O {[%emt 0:04:17]} 10. Nh4 {[%emt 0:01:24]} Re8 {[%emt 0:12:51]} 11. f3 {[%emt 0:04:35]} Bh5 {[%emt 0:00:24]} 12. e4 {[%emt 0:00:11]} dxe4 {[%emt 0:00:41]} 13. fxe4 {[%emt 0:00:16]} Qb6 {[%emt 0:00:08]} 14. Nf5 {[%emt 0:03:29]} Bf8 {[%emt 0:02:02]} 15. Na4 {[%emt 0:03:47]} Qa6 {[%emt 0:00:35]} 16. Re1 {[%emt 0:13:45]} Bg6 {[%emt 0:04:31]} 17. Bf4 {[%emt 0:05:59]} b5 {[%emt 0:03:09]} 18. Nc5 {[%emt 0:02:30]} Nxc5 {[%emt 0:00:37]} 19. dxc5 {[%emt 0:00:06]} Bxf5 {[%emt 0:01:55]} 20. exf5 {[%emt 0:00:24]} Rxe1+ {[%emt 0:00:04]} 21. Rxe1 {[%emt 0:00:11]} Qxa2 {[%emt 0:00:07]} 22. Rd1 {[%emt 0:20:45]} Rc8 {[%emt 0:01:15]} 23. Bd6 {[%emt 0:05:07]} Qa5 {[%emt 0:10:31]} 24. Bxf8 {[%emt 0:03:31]} Kxf8 {[%emt 0:00:13]} 25. Qd3 {[%emt 0:00:35]} Ne8 {[%emt 0:02:34]} 26. Qd7 {[%emt 0:01:04]} Qc7 {[%emt 0:00:12]} 27. b4 {[%emt 0:00:41]} h6 {[%emt 0:02:18]} 28. Bf3 {[%emt 0:01:37]} Qxd7 {[%emt 0:02:56]} 29. Rxd7 {[%emt 0:00:12]} Rc7 {[%emt 0:00:01]} 30. Rxc7 {[%emt 0:01:44]} Nxc7 {[%emt 0:00:03]} 31. Bxc6 {[%emt 0:00:04]} Ke7 {[%emt 0:00:06]} 32. Kf2 {[%emt 0:00:46]} Na6 {[%emt 0:00:17]} 33. Bxb5 {[%emt 0:00:16]} Nxb4 {[%emt 0:00:02]} 34. Ke3 {[%emt 0:01:37]} Nd5+ {[%emt 0:00:28]} 35. Kd4 {[%emt 0:01:17]} Nc7 {[%emt 0:00:12]} 36. Bc4 {[%emt 0:00:31]} Kf6 {[%emt 0:03:08]} 37. g4 {[%emt 0:02:06]} Ke7 {[%emt 0:06:00]} 38. h3 {[%emt 0:04:03]} f6 {[%emt 0:06:39]} 39. Bb3 1/2-1/2

[Event "36th Balaton Open A 2018"]
[Site "Balatonlelle"]
[Date "2018.06.16"]
[Round "5"]
[White "Ananya Rishi Gupta"]
[Black "Vukovic, Ivo"]
[Result "1/2-1/2"]
[ECO "C50"]
[WhiteElo "1968"]
[BlackElo "2031"]
[Annotator "NA"]
[PlyCount "37"]
[EventDate "2018.06.12"]
[EventType "swiss"]
[EventCountry "HUN"]
[SourceTitle "playchess.com"]
[Source "ChessBase"]
[SourceQuality "1"]
[TimeControl "40/5400+30:1800+30"]

1. e4 {[%emt 0:00:12]} e5 {[%emt 0:00:38]} 2. Nf3 {[%emt 0:00:15]} Nc6 {[%emt 0:00:07]} 3. Bc4 {[%emt 0:00:20]} Be7 {[%emt 0:00:12]} 4. d4 {[%emt 0:00:32]} d6 {[%emt 0:00:21]} 5. dxe5 {[%emt 0:00:57]} dxe5 {[%emt 0:00:36]} 6. Qxd8+ {[%emt 0:00:49]} Bxd8 {[%emt 0:00:09]} 7. Be3 {[%emt 0:01:08]} Nf6 {[%emt 0:02:40]} 8. Nc3 {[%emt 0:00:27]} a6 {[%emt 0:01:04]} 9. h3 {[%emt 0:02:33]} Be7 {[%emt 0:02:02]} 10. Nd5 {[%emt 0:11:19]} Bd6 {[%emt 0:03:18]} 11. Nxf6+ {[%emt 0:01:10]} gxf6 {[%emt 0:00:09]} 12. O-O-O {[%emt 0:00:42]} f5 {[%emt 0:08:14]} 13. exf5 {[%emt 0:03:05]} Bxf5 {[%emt 0:00:06]} 14. a3 {[%emt 0:04:39]} f6 {[%emt 0:16:16]} 15. Bh6 {[%emt 0:13:39]} Bf8 {[%emt 0:00:30]} 16. Bxf8 {[%emt 0:00:27]} Rxf8 {[%emt 0:00:08]} 17. Rhe1 {[%emt 0:01:10]} Bd7 {[%emt 0:02:42]} 18. Bd5 {[%emt 0:07:40]} O-O-O {[%emt 0:00:56]} 19. Bxc6 {[%emt 0:04:21]} 1/2-1/2

[Event "36th Balaton Open A 2018"]
[Site "Balatonlelle"]
[Date "2018.06.17"]
[Round "6"]
[White "Sardy, Peter"]
[Black "Suta, Andraz"]
[Result "1/2-1/2"]
[ECO "C77"]
[WhiteElo "2340"]
[BlackElo "2239"]
[Annotator "NA"]
[PlyCount "74"]
[EventDate "2018.06.12"]
[EventType "swiss"]
[EventCountry "HUN"]
[SourceTitle "playchess.com"]
[Source "ChessBase"]
[SourceQuality "1"]
[TimeControl "40/5400+30:1800+30"]

1. e4 {[%emt 0:01:15]} e5 {[%emt 0:01:03]} 2. Nf3 {[%emt 0:00:05]} Nc6 {[%emt 0:00:03]} 3. Bb5 {[%emt 0:00:06]} a6 {[%emt 0:00:48]} 4. Ba4 {[%emt 0:00:19]} Nf6 {[%emt 0:00:06]} 5. Nc3 {[%emt 0:00:13]} d6 {[%emt 0:02:39]} 6. O-O {[%emt 0:03:58]} b5 {[%emt 0:02:55]} 7. Bb3 {[%emt 0:00:06]} Be7 {[%emt 0:00:33]} 8. a4 {[%emt 0:05:34]} b4 {[%emt 0:01:24]} 9. Nd5 {[%emt 0:00:14]} O-O {[%emt 0:03:48]} 10. d4 {[%emt 0:04:39]} Rb8 {[%emt 0:41:17]} 11. dxe5 {[%emt 0:08:22]} Nxe5 {[%emt 0:03:33]} 12. Nxe5 {[%emt 0:08:37]} dxe5 {[%emt 0:00:05]} 13. Qe2 {[%emt 0:01:56]} Nxd5 {[%emt 0:02:04]} 14. Bxd5 {[%emt 0:01:27]} a5 {[%emt 0:04:01]} 15. Be3 {[%emt 0:04:57]} Bb7 $16 {[%emt 0:02:14]} 16. Rad1 {[%emt 0:00:48]} Qc8 {[%emt 0:00:38]} 17. b3 {[%emt 0:05:02]} Bd6 {[%emt 0:13:56]} 18. Bxb7 {[%emt 0:09:57]} Qxb7 {[%emt 0:00:14]} 19. Qc4 {[%emt 0:00:23]} Ra8 {[%emt 0:01:53]} 20. Rd5 {[%emt 0:06:31]} Ra6 {[%emt 0:01:02]} 21. Rfd1 {[%emt 0:06:07]} Rc6 {[%emt 0:05:32]} 22. Qe2 {[%emt 0:00:32]} Qa6 {[%emt 0:04:55]} 23. Qxa6 {[%emt 0:05:37]} Rxa6 {[%emt 0:00:00]} 24. Kf1 {[%emt 0:00:24]} f6 {[%emt 0:00:31]} 25. Ke2 {[%emt 0:00:11]} Kf7 {[%emt 0:02:06]} 26. R1d3 {[%emt 0:05:34]} Ke6 {[%emt 0:00:36]} 27. Rb5 {[%emt 0:06:24]} Rfa8 {[%emt 0:01:28]} 28. Kd1 {[%emt 0:01:34]} h5 {[%emt 0:02:03]} 29. h4 {[%emt 0:02:31]} g6 {[%emt 0:00:13]} 30. f3 {[%emt 0:00:31]} f5 {[%emt 0:01:36]} 31. Bc5 {[%emt 0:01:52]} Rc6 {[%emt 0:01:35]} 32. Bxd6 {[%emt 0:02:18]} Rxd6 {[%emt 0:00:07]} 33. Rxd6+ {[%emt 0:01:18]} Kxd6 {[%emt 0:00:25]} 34. Rd5+ {[%emt 0:00:14]} Ke6 {[%emt 0:00:06]} 35. Rc5 {[%emt 0:02:03]} Kd6 {[%emt 0:00:15]} 36. Rd5+ {[%emt 0:00:31]} Ke6 {[%emt 0:00:21]} 37. Rc5 Kd6 {[%emt 0:00:11]} 1/2-1/2

[Event "36th Balaton Open A 2018"]
[Site "Balatonlelle"]
[Date "2018.06.17"]
[Round "6"]
[White "Nagy, Daniel"]
[Black "Haszon, David"]
[Result "1-0"]
[ECO "D76"]
[WhiteElo "2312"]
[BlackElo "2246"]
[Annotator "NA"]
[PlyCount "116"]
[EventDate "2018.06.12"]
[EventType "swiss"]
[EventCountry "HUN"]
[SourceTitle "playchess.com"]
[Source "ChessBase"]
[SourceQuality "1"]
[TimeControl "40/5400+30:1800+30"]

1. d4 {[%emt 0:00:03]} Nf6 {[%emt 0:10:40]} 2. Nf3 {[%emt 0:00:14]} g6 {[%emt 0:00:14]} 3. c4 {[%emt 0:00:18]} Bg7 {[%emt 0:00:06]} 4. g3 {[%emt 0:00:05]} O-O {[%emt 0:00:09]} 5. Bg2 {[%emt 0:00:05]} d5 {[%emt 0:00:05]} 6. cxd5 {[%emt 0:00:07]} Nxd5 {[%emt 0:00:40]} 7. O-O {[%emt 0:00:07]} Nb6 {[%emt 0:02:43]} 8. Nc3 {[%emt 0:01:30]} Nc6 {[%emt 0:03:41]} 9. e3 {[%emt 0:00:36]} Be6 {[%emt 0:07:21]} 10. b3 {[%emt 0:05:47]} Nd5 {[%emt 0:01:10]} 11. Na4 {[%emt 0:08:17]} Bg4 {[%emt 0:08:18]} 12. h3 {[%emt 0:15:34]} Bc8 {[%emt 0:00:07]} 13. Ba3 {[%emt 0:01:34]} Nb6 {[%emt 0:02:15]} 14. Nc5 {[%emt 0:08:23]} Re8 {[%emt 0:04:36]} 15. Rc1 {[%emt 0:01:04]} Nd7 $16 {[%emt 0:02:33]} 16. Qc2 {[%emt 0:11:02]} Nxc5 {[%emt 0:03:59]} 17. Bxc5 {[%emt 0:01:01]} Nb8 {[%emt 0:08:18]} 18. Rfd1 {[%emt 0:05:40]} c6 {[%emt 0:03:12]} 19. a4 {[%emt 0:05:46]} Nd7 {[%emt 0:00:42]} 20. Ba3 {[%emt 0:00:19]} Nf6 {[%emt 0:00:58]} 21. Ne5 {[%emt 0:02:17]} Nd7 {[%emt 0:03:41]} 22. Nd3 {[%emt 0:04:42]} Qa5 {[%emt 0:03:00]} 23. b4 {[%emt 0:04:23]} Qf5 {[%emt 0:03:31]} 24. e4 {[%emt 0:00:53]} Qg5 {[%emt 0:01:26]} 25. h4 {[%emt 0:02:48]} Qg4 {[%emt 0:01:50]} 26. Bb2 {[%emt 0:00:59]} Bh6 {[%emt 0:10:19]} 27. Ra1 {[%emt 0:03:33]} Bg7 {[%emt 0:00:43]} 28. Nf4 {[%emt 0:04:35]} Nf6 {[%emt 0:03:58]} 29. e5 {[%emt 0:03:33]} Bf5 {[%emt 0:05:47]} 30. Qb3 {[%emt 0:01:08]} Be4 {[%emt 0:00:59]} 31. exf6 {[%emt 0:01:30]} exf6 {[%emt 0:01:57]} 32. Bh3 {[%emt 0:02:38]} Qf3 {[%emt 0:00:48]} 33. Qxf3 {[%emt 0:00:10]} Bxf3 {[%emt 0:00:06]} 34. Re1 {[%emt 0:01:36]} g5 {[%emt 0:00:21]} 35. Nd3 {[%emt 0:00:58]} gxh4 {[%emt 0:01:25]} 36. gxh4 {[%emt 0:00:05]} a5 {[%emt 0:01:11]} 37. b5 {[%emt 0:01:18]} cxb5 {[%emt 0:02:13]} 38. axb5 {[%emt 0:00:12]} Bf8 {[%emt 0:01:23]} 39. Bg2 {[%emt 0:01:28]} Be2 {[%emt 0:00:44]} 40. Bf1 {[%emt 0:00:00]} Bf3 {[%emt 0:01:10]} 41. Nc5 {[%emt 0:03:12]} Bd6 {[%emt 0:03:22]} 42. Bg2 {[%emt 0:00:40]} Bxg2 {[%emt 0:02:06]} 43. Kxg2 {[%emt 0:00:01]} Rxe1 {[%emt 0:00:10]} 44. Rxe1 {[%emt 0:00:02]} a4 {[%emt 0:00:09]} 45. Ra1 {[%emt 0:00:53]} b6 {[%emt 0:00:48]} 46. Rxa4 {[%emt 0:01:53]} Rc8 {[%emt 0:00:30]} 47. Ne4 {[%emt 0:00:29]} Be7 {[%emt 0:00:12]} 48. d5 {[%emt 0:00:31]} f5 {[%emt 0:00:24]} 49. Nf6+ {[%emt 0:00:28]} Kg7 {[%emt 0:00:14]} 50. Nd7+ {[%emt 0:02:08]} Kg6 {[%emt 0:00:23]} 51. Ne5+ {[%emt 0:00:45]} Kh5 {[%emt 0:00:20]} 52. Nc6 {[%emt 0:00:21]} Rg8+ {[%emt 0:01:10]} 53. Kf3 {[%emt 0:00:11]} Bf8 {[%emt 0:00:39]} 54. Ra8 {[%emt 0:00:44]} Kxh4 {[%emt 0:00:25]} 55. d6 {[%emt 0:00:32]} Bxd6 {[%emt 0:00:58]} 56. Rxg8 {[%emt 0:00:05]} h5 {[%emt 0:00:12]} 57. Bf6+ {[%emt 0:01:07]} Kh3 {[%emt 0:00:09]} 58. Rh8 {[%emt 0:00:06]} h4 {[%emt 0:00:14]} 1-0

[Event "36th Balaton Open A 2018"]
[Site "Balatonlelle"]
[Date "2018.06.17"]
[Round "6"]
[White "Kincs, Imre"]
[Black "Gunyecz, Zoltan Dr"]
[Result "1-0"]
[ECO "D94"]
[WhiteElo "2210"]
[BlackElo "1987"]
[Annotator "NA"]
[PlyCount "47"]
[EventDate "2018.06.12"]
[EventType "swiss"]
[EventCountry "HUN"]
[SourceTitle "playchess.com"]
[Source "ChessBase"]
[SourceQuality "1"]
[TimeControl "40/5400+30:1800+30"]

1. d4 {[%emt 0:01:14]} Nf6 {[%emt 0:01:58]} 2. Nf3 {[%emt 0:00:12]} g6 {[%emt 0:00:06]} 3. c4 {[%emt 0:00:03]} Bg7 {[%emt 0:00:04]} 4. Nc3 {[%emt 0:00:04]} d5 {[%emt 0:00:03]} 5. e3 {[%emt 0:01:40]} O-O {[%emt 0:00:47]} 6. h4 {[%emt 0:06:59]} c5 {[%emt 0:02:59]} 7. h5 {[%emt 0:02:04]} cxd4 {[%emt 0:03:34]} 8. exd4 {[%emt 0:01:16]} Nc6 {[%emt 0:04:48]} 9. hxg6 {[%emt 0:01:26]} fxg6 {[%emt 0:03:52]} 10. Be3 {[%emt 0:01:34]} e6 {[%emt 0:07:28]} 11. Qd2 $14 {[%emt 0:03:59]} Ng4 {[%emt 0:18:25]} 12. O-O-O {[%emt 0:10:13]} a6 {[%emt 0:08:49]} 13. Bg5 {[%emt 0:06:14]} Qa5 {[%emt 0:04:23]} 14. Rh4 {[%emt 0:03:55]} e5 {[%emt 0:07:51]} 15. dxe5 {[%emt 0:08:30]} Ncxe5 {[%emt 0:04:43]} 16. Qxd5+ {[%emt 0:01:34]} Qxd5 {[%emt 0:00:21]} 17. Nxd5 {[%emt 0:00:01]} Be6 {[%emt 0:06:09]} 18. Ne7+ {[%emt 0:01:39]} Kf7 {[%emt 0:05:20]} 19. Rxh7 {[%emt 0:01:11]} Nxf3 {[%emt 0:01:00]} 20. gxf3 {[%emt 0:00:33]} Nf6 {[%emt 0:00:15]} 21. Bxf6 {[%emt 0:00:26]} Kxf6 {[%emt 0:00:01]} 22. Nd5+ {[%emt 0:00:11]} Kf7 {[%emt 0:00:33]} 23. Nc7 {[%emt 0:00:58]} Rh8 {[%emt 0:02:22]} 24. Rxg7+ {[%emt 0:01:51]} 1-0

[Event "36th Balaton Open A 2018"]
[Site "Balatonlelle"]
[Date "2018.06.17"]
[Round "6"]
[White "Forgacs, Jozsef"]
[Black "Boguszlavszkij, Jevgenyij"]
[Result "1-0"]
[ECO "D37"]
[WhiteElo "2199"]
[BlackElo "2170"]
[Annotator "NA"]
[PlyCount "65"]
[EventDate "2018.06.12"]
[EventType "swiss"]
[EventCountry "HUN"]
[SourceTitle "playchess.com"]
[Source "ChessBase"]
[SourceQuality "1"]
[TimeControl "40/5400+30:1800+30"]

1. d4 {[%emt 0:01:58]} Nf6 {[%emt 0:02:02]} 2. c4 {[%emt 0:00:14]} e6 {[%emt 0:00:20]} 3. Nf3 {[%emt 0:00:12]} d5 {[%emt 0:00:27]} 4. Nc3 {[%emt 0:00:21]} Nbd7 {[%emt 0:00:21]} 5. cxd5 {[%emt 0:00:24]} exd5 {[%emt 0:00:05]} 6. Bg5 {[%emt 0:00:12]} Be7 {[%emt 0:00:16]} 7. e3 {[%emt 0:00:26]} Nf8 {[%emt 0:00:59]} 8. Qc2 {[%emt 0:01:36]} c6 {[%emt 0:00:13]} 9. Bd3 {[%emt 0:01:13]} Ng6 {[%emt 0:01:48]} 10. O-O {[%emt 0:11:53]} O-O {[%emt 0:01:44]} 11. Bxf6 {[%emt 0:02:18]} Bxf6 {[%emt 0:00:58]} 12. b4 {[%emt 0:00:11]} a6 {[%emt 0:00:27]} 13. a4 {[%emt 0:00:18]} Bd7 {[%emt 0:09:41]} 14. b5 {[%emt 0:06:47]} Qe7 {[%emt 0:01:05]} 15. Rfb1 {[%emt 0:04:04]} Rfc8 {[%emt 0:01:36]} 16. bxa6 {[%emt 0:00:25]} bxa6 {[%emt 0:00:21]} 17. a5 {[%emt 0:04:44]} Qd6 {[%emt 0:07:58]} 18. Na4 {[%emt 0:01:19]} Re8 $18 {[%emt 0:06:48]} 19. Nb6 {[%emt 0:09:28]} Ra7 {[%emt 0:00:22]} 20. Rc1 {[%emt 0:02:01]} Ne7 {[%emt 0:04:51]} 21. Qc5 {[%emt 0:08:25]} Qxc5 {[%emt 0:07:41]} 22. Rxc5 {[%emt 0:00:22]} Be6 {[%emt 0:06:05]} 23. Nd2 {[%emt 0:04:46]} Rd8 {[%emt 0:02:56]} 24. Nb3 {[%emt 0:03:54]} Rb8 {[%emt 0:20:35]} 25. Rcc1 {[%emt 0:05:18]} Nc8 {[%emt 0:06:27]} 26. Rxc6 {[%emt 0:04:51]} Bd8 {[%emt 0:00:36]} 27. Nxc8 {[%emt 0:07:14]} Rxc8 {[%emt 0:01:14]} 28. Rxa6 {[%emt 0:02:20]} Rxa6 {[%emt 0:02:37]} 29. Bxa6 {[%emt 0:00:04]} Rb8 {[%emt 0:02:48]} 30. Nc5 {[%emt 0:00:55]} Bf5 {[%emt 0:00:07]} 31. Bb7 {[%emt 0:00:42]} Bc8 {[%emt 0:01:44]} 32. a6 {[%emt 0:00:52]} Bxb7 {[%emt 0:00:12]} 33. axb7 {[%emt 0:00:24]} 1-0

[Event "36th Balaton Open A 2018"]
[Site "Balatonlelle"]
[Date "2018.06.17"]
[Round "6"]
[White "Atkins, Rita"]
[Black "Radics, Laszlo Dr"]
[Result "1-0"]
[ECO "A80"]
[WhiteElo "2071"]
[BlackElo "1909"]
[Annotator "NA"]
[PlyCount "53"]
[EventDate "2018.06.12"]
[EventType "swiss"]
[EventCountry "HUN"]
[SourceTitle "playchess.com"]
[Source "ChessBase"]
[SourceQuality "1"]
[TimeControl "40/5400+30:1800+30"]

1. d4 {[%emt 0:00:33]} f5 {[%emt 0:01:03]} 2. Bg5 {[%emt 0:00:41]} h6 {[%emt 0:00:31]} 3. Bh4 {[%emt 0:00:32]} g5 {[%emt 0:01:03]} 4. e4 {[%emt 0:00:54]} Bg7 {[%emt 0:00:57]} 5. Bg3 {[%emt 0:07:43]} fxe4 {[%emt 0:08:01]} 6. Qh5+ {[%emt 0:06:28]} Kf8 {[%emt 0:00:10]} 7. Nc3 {[%emt 0:10:46]} Nf6 {[%emt 0:01:40]} 8. Qg6 {[%emt 0:00:36]} d5 {[%emt 0:00:13]} 9. f3 {[%emt 0:00:58]} Be6 {[%emt 0:19:28]} 10. fxe4 $17 {[%emt 0:05:27]} dxe4 {[%emt 0:05:26]} 11. Be5 {[%emt 0:11:56]} Qd7 {[%emt 0:07:31]} 12. Bxf6 {[%emt 0:06:19]} exf6 {[%emt 0:03:47]} 13. Qxe4 {[%emt 0:00:56]} c6 {[%emt 0:06:35]} 14. O-O-O {[%emt 0:02:04]} Bd5 {[%emt 0:05:30]} 15. Qd3 {[%emt 0:10:29]} Na6 {[%emt 0:02:18]} 16. Nxd5 {[%emt 0:04:14]} cxd5 {[%emt 0:01:06]} 17. Qa3+ {[%emt 0:00:45]} Kf7 {[%emt 0:05:56]} 18. Bd3 {[%emt 0:02:24]} Nc7 {[%emt 0:01:50]} 19. Nf3 {[%emt 0:00:27]} Bf8 {[%emt 0:02:36]} 20. Qb3 {[%emt 0:00:32]} b5 {[%emt 0:00:16]} 21. Rhf1 {[%emt 0:00:41]} Kg7 {[%emt 0:00:35]} 22. Nh4 {[%emt 0:03:39]} Rg8 {[%emt 0:01:25]} 23. Nf5+ {[%emt 0:01:19]} Kh8 {[%emt 0:00:09]} 24. Nxh6 {[%emt 0:03:44]} Bxh6 {[%emt 0:00:14]} 25. Rxf6 {[%emt 0:00:04]} Kg7 {[%emt 0:01:47]} 26. Rg6+ {[%emt 0:00:26]} Kh7 27. Rd6+ {Qg7 Rf6+} 1-0

[Event "36th Balaton Open A 2018"]
[Site "Balatonlelle"]
[Date "2018.06.17"]
[Round "6"]
[White "Metaxasz, Vaszilisz"]
[Black "Terbe, Julianna"]
[Result "0-1"]
[ECO "A46"]
[WhiteElo "2047"]
[BlackElo "2242"]
[Annotator "NA"]
[PlyCount "47"]
[EventDate "2018.06.12"]
[EventType "swiss"]
[EventCountry "HUN"]
[SourceTitle "playchess.com"]
[Source "ChessBase"]
[SourceQuality "1"]
[TimeControl "40/5400+30:1800+30"]

1. d4 {[%emt 0:00:03]} Nf6 {[%emt 0:00:41]} 2. Nf3 {[%emt 0:01:41]} d5 {[%emt 0:00:10]} 3. g3 {[%emt 0:01:06]} c6 {[%emt 0:00:19]} 4. Bg2 {[%emt 0:00:34]} Bf5 {[%emt 0:00:08]} 5. O-O {[%emt 0:01:05]} e6 {[%emt 0:00:04]} 6. b3 {[%emt 0:01:29]} h6 {[%emt 0:01:22]} 7. Bb2 {[%emt 0:00:13]} Be7 {[%emt 0:00:05]} 8. c4 {[%emt 0:00:36]} O-O {[%emt 0:00:05]} 9. Nc3 {[%emt 0:01:13]} Nbd7 {[%emt 0:00:45]} 10. cxd5 {[%emt 0:02:20]} exd5 {[%emt 0:00:18]} 11. Ne5 {[%emt 0:02:45]} Re8 {[%emt 0:03:20]} 12. Qd2 {[%emt 0:21:26]} Bb4 {[%emt 0:03:20]} 13. Qf4 {[%emt 0:02:25]} Bh7 {[%emt 0:01:04]} 14. a3 {[%emt 0:02:36]} Ba5 {[%emt 0:00:52]} 15. Nxd7 {[%emt 0:01:48]} Qxd7 {[%emt 0:00:41]} 16. b4 {[%emt 0:05:00]} Bc7 {[%emt 0:00:12]} 17. Qh4 {[%emt 0:01:21]} (17. Qd2 $15) 17... Ne4 {[%emt 0:07:28]} (17... a5 $19 18. bxa5 Bxa5) 18. Nxe4 {[%emt 0:10:43]} dxe4 $15 {[%emt 0:04:58]} 19. Rad1 {[%emt 0:06:39]} Bf5 {[%emt 0:05:28]} 20. f3 {[%emt 0:17:38]} Bd8 {[%emt 0:07:48]} 21. Qh5 {[%emt 0:00:16]} Bg5 {[%emt 0:00:09]} 22. g4 {[%emt 0:00:13]} exf3 {[%emt 0:00:23]} 23. exf3 {[%emt 0:05:07]} Bc2 {[%emt 0:05:54]} 24. f4 {[%emt 0:00:59]} 0-1

[Event "36th Balaton Open A 2018"]
[Site "Balatonlelle"]
[Date "2018.06.17"]
[Round "6"]
[White "Trajber, Daniel"]
[Black "Leszko, Bence"]
[Result "1-0"]
[ECO "A40"]
[WhiteElo "2022"]
[BlackElo "2096"]
[Annotator "NA"]
[PlyCount "98"]
[EventDate "2018.06.12"]
[EventType "swiss"]
[EventCountry "HUN"]
[SourceTitle "playchess.com"]
[Source "ChessBase"]
[SourceQuality "1"]
[TimeControl "40/5400+30:1800+30"]

1. d4 {[%emt 0:06:42]} e6 {[%emt 0:00:51]} 2. Nf3 {[%emt 0:00:28]} b6 {[%emt 0:00:14]} 3. Bf4 {[%emt 0:00:34]} Bb7 {[%emt 0:00:08]} 4. e3 {[%emt 0:00:18]} f5 {[%emt 0:00:09]} 5. Bd3 {[%emt 0:01:01]} Nf6 {[%emt 0:00:28]} 6. h3 {[%emt 0:01:06]} Be7 {[%emt 0:00:29]} 7. Nbd2 {[%emt 0:00:42]} Ne4 {[%emt 0:01:38]} 8. O-O {[%emt 0:04:21]} O-O {[%emt 0:02:07]} 9. c3 {[%emt 0:01:47]} d6 {[%emt 0:02:02]} 10. Qc2 {[%emt 0:03:32]} Nxd2 {[%emt 0:00:29]} 11. Nxd2 {[%emt 0:00:20]} Bf6 {[%emt 0:05:41]} 12. Bh2 {[%emt 0:04:35]} g6 {[%emt 0:04:40]} 13. e4 {[%emt 0:01:58]} Bg7 {[%emt 0:00:33]} 14. Qb3 {[%emt 0:05:14]} d5 {[%emt 0:02:25]} 15. exf5 {[%emt 0:01:32]} exf5 {[%emt 0:00:21]} 16. Rfe1 {[%emt 0:02:40]} Nd7 {[%emt 0:01:14]} 17. Qa3 $14 {[%emt 0:08:20]} ({Better is} 17. Nf3 $16) 17... Rf7 {[%emt 0:32:16]} 18. Ba6 {[%emt 0:06:59]} Bc6 {[%emt 0:05:03]} 19. Re6 {[%emt 0:01:52]} Rf6 {[%emt 0:00:50]} 20. Rxc6 {[%emt 0:03:24]} Rxc6 {[%emt 0:06:32]} 21. Bb7 {[%emt 0:00:22]} Rf6 {[%emt 0:17:50]} 22. Bxd5+ {[%emt 0:01:19]} Kh8 {[%emt 0:00:16]} 23. Bxa8 {[%emt 0:01:22]} Qxa8 {[%emt 0:00:01]} 24. Bxc7 {[%emt 0:01:38]} Re6 {[%emt 0:00:10]} 25. Nf3 {[%emt 0:01:48]} h6 {[%emt 0:00:40]} 26. Qa4 {[%emt 0:02:01]} Qe8 {[%emt 0:00:59]} 27. Kf1 {[%emt 0:03:38]} Qc8 {[%emt 0:02:52]} 28. Bh2 {[%emt 0:04:13]} b5 {[%emt 0:01:41]} 29. Qxb5 {[%emt 0:00:43]} Rb6 {[%emt 0:00:09]} 30. Qe2 {[%emt 0:00:31]} Nf6 {[%emt 0:01:13]} 31. Ne5 {[%emt 0:01:05]} Kh7 {[%emt 0:00:08]} 32. Re1 {[%emt 0:01:22]} Ne4 {[%emt 0:00:30]} 33. f3 {[%emt 0:01:04]} Nf6 {[%emt 0:00:52]} 34. c4 {[%emt 0:00:58]} Nh5 {[%emt 0:00:36]} 35. g4 {[%emt 0:01:15]} fxg4 {[%emt 0:00:33]} 36. hxg4 {[%emt 0:00:16]} Nf6 {[%emt 0:01:00]} 37. b3 {[%emt 0:03:12]} h5 {[%emt 0:00:15]} 38. Qd3 {[%emt 0:01:07]} Ng8 {[%emt 0:00:51]} 39. Kg2 {[%emt 0:04:44]} hxg4 {[%emt 0:00:32]} 40. Nxg4 {[%emt 0:00:00]} Qa6 {[%emt 0:00:53]} 41. Re2 {[%emt 0:04:18]} Qb7 {[%emt 0:01:30]} 42. c5 {[%emt 0:01:48]} Rb4 {[%emt 0:00:08]} 43. Ne5 {[%emt 0:00:22]} Ne7 {[%emt 0:00:35]} 44. c6 {[%emt 0:01:09]} Qb6 {[%emt 0:00:37]} 45. Nxg6 {[%emt 0:09:05]} Rxd4 {[%emt 0:00:49]} 46. Qc2 {[%emt 0:02:00]} Nxg6 {[%emt 0:00:51]} 47. Re6 {[%emt 0:00:11]} Kh8 {[%emt 0:00:43]} 48. Qxg6 {[%emt 0:01:50]} Rd2+ {[%emt 0:01:15]} 49. Kh3 {[%emt 0:00:51]} Rd8 {[%emt 0:01:52]} 1-0

[Event "36th Balaton Open A 2018"]
[Site "Balatonlelle"]
[Date "2018.06.17"]
[Round "6"]
[White "Tancsa, Tamas"]
[Black "Ronce, Nathan"]
[Result "1/2-1/2"]
[ECO "B01"]
[WhiteElo "1965"]
[BlackElo "2210"]
[Annotator "NA"]
[PlyCount "43"]
[EventDate "2018.06.12"]
[EventType "swiss"]
[EventCountry "HUN"]
[SourceTitle "playchess.com"]
[Source "ChessBase"]
[SourceQuality "1"]
[TimeControl "40/5400+30:1800+30"]

1. e4 {[%emt 0:00:03]} d5 {[%emt 0:13:47]} 2. exd5 {[%emt 0:00:40]} Nf6 {[%emt 0:00:15]} 3. Nf3 {[%emt 0:00:31]} Bg4 {[%emt 0:00:29]} 4. c4 {[%emt 0:01:14]} c6 {[%emt 0:06:12]} 5. dxc6 {[%emt 0:00:54]} Nxc6 {[%emt 0:00:08]} 6. Be2 {[%emt 0:00:46]} e5 {[%emt 0:00:50]} 7. d3 {[%emt 0:01:23]} Bb4+ {[%emt 0:09:15]} 8. Bd2 {[%emt 0:01:59]} Bc5 {[%emt 0:01:24]} 9. Bg5 {[%emt 0:14:31]} e4 {[%emt 0:09:19]} 10. dxe4 {[%emt 0:02:00]} Qxd1+ {[%emt 0:03:21]} 11. Bxd1 {[%emt 0:00:19]} Bxf2+ {[%emt 0:05:52]} 12. Kxf2 {[%emt 0:03:09]} Nxe4+ {[%emt 0:00:25]} 13. Ke3 {[%emt 0:01:58]} Bxf3 {[%emt 0:00:07]} 14. Bxf3 {[%emt 0:01:10]} Nxg5 {[%emt 0:00:31]} 15. Bxc6+ {[%emt 0:06:55]} bxc6 $11 {[%emt 0:00:19]} 16. h4 {[%emt 0:00:30]} Ne6 {[%emt 0:00:10]} 17. Nc3 {[%emt 0:00:23]} O-O-O {[%emt 0:01:22]} 18. Rad1 {[%emt 0:00:30]} Rhe8 {[%emt 0:01:44]} 19. Rxd8+ {[%emt 0:01:38]} Kxd8 {[%emt 0:00:12]} 20. b4 {[%emt 0:02:46]} f5 {[%emt 0:06:14]} 21. g3 {[%emt 0:08:42]} Kc7 {[%emt 0:05:50]} 22. Rd1 {[%emt 0:01:03]} 1/2-1/2